bitfinex/quotes_ETHUSD_20250721
["timestamp","ask_amount","ask_price","bid_price","bid_amount"]
[1753098815159,2.6191148,3818.1,3817.7,0.3055142]
[1753098815343,2.61930894,3817.9,3817.3,3.001]
[1753098815542,2.64547383,3817.8,3817.3,3.001]
[1753098815738,2.64547383,3817.8,3817.3,0.001]
[1753098816075,0.02613849,3817.8,3817.3,0.64472689]
[1753098816748,2.64544949,3817.8,3817.3,0.64472689]
[1753098816945,3.08734949,3817.8,3817.3,0.64472689]
[1753098817370,3.08734949,3817.8,3817.3,0.001]
[1753098817371,0.4419,3817.7,3817.3,0.001]
[1753098818199,2.64544949,3817.8,3817.3,2.62062615]
[1753098818200,0.02613849,3817.8,3817.3,2.62062615]
[1753098818401,14.5,3817.9,3817.3,2.62063563]
[1753098818605,0.7601,3818.3,3817.7,2.61932548]
[1753098818806,0.78623849,3818.3,3817.4,3.0814717]
[1753098819002,0.78623849,3818.3,3817.7,2.61935815]
[1753098819318,17.14497168,3818.5,3817.7,2.61937815]
[1753098819524,14.5,3818.5,3817.8,2.61930913]
[1753098819707,3.37527607,3818.6,3817.8,2.61930913]
[1753098819912,0.02613849,3818.5,3817.8,2.61930913]
[1753098820111,0.02613849,3818.5,3817.8,3.32947685]
[1753098820406,2.64498208,3818.5,3817.8,0.71016772]
[1753098820607,2.61891814,3818.4,3817.8,0.71016772]
[1753098820773,2.61901218,3818.3,3817.8,0.71016772]
[1753098820975,2.61901218,3818.3,3817.6,3.08133262]
[1753098821175,2.61901218,3818.3,3817.6,2.61943816]
[1753098822114,0.02613849,3818.2,3817.6,2.61943816]
[1753098822412,15.2565,3818.6,3817.7,0.4357]
[1753098822576,15.2565,3818.6,3817.8,2.64549628]
[1753098822781,17.11877056,3818.6,3817.9,0.30811963]
[1753098823092,0.002,3818.7,3818.0,0.02619172]
[1753098823289,2.61880525,3818.6,3817.9,2.61921918]
[1753098823509,2.61883825,3818.5,3817.9,2.61921918]
[1753098823711,2.6187865,3818.6,3817.9,2.61921918]
[1753098823891,2.6187865,3818.6,3818.0,2.61916244]
[1753098824613,2.64684701,3818.7,3818.1,2.61910144]
[1753098825184,0.4419,3818.6,3817.8,3.0]
[1753098825382,0.7884,3818.3,3817.8,3.0]
[1753098825590,2.61914552,3818.1,3817.4,2.61952923]
[1753098825787,3.08710213,3818.2,3817.5,2.92511994]
[1753098826017,3.08710213,3818.2,3817.6,2.61944248]
[1753098826317,3.087115,3818.2,3817.5,2.92511169]
[1753098826614,0.7884,3818.3,3817.5,2.92511169]
[1753098826615,0.81453849,3818.3,3817.8,2.61928768]
[1753098826817,2.61903783,3818.2,3817.6,2.61944677]
[1753098826996,0.4348,3818.2,3817.7,2.61936131]
[1753098827718,0.02613849,3818.1,3817.6,3.21718188]
[1753098827920,0.46093849,3818.2,3817.6,0.59778186]
[1753098828112,0.46093849,3818.2,3817.6,2.61940082]
[1753098828311,2.61910406,3818.1,3817.3,0.45939652]
[1753098828621,0.02613849,3818.0,3817.5,2.6195138]
[1753098829393,0.46093849,3818.0,3817.5,2.6195138]
[1753098830935,14.5,3818.2,3817.7,2.6193356]
[1753098832133,14.5,3818.2,3817.5,2.61951538]
[1753098832134,14.5,3818.2,3817.8,2.61930768]
[1753098832362,0.02613849,3818.1,3817.6,2.61944677]
[1753098832551,14.5,3818.2,3817.6,2.61940147]
[1753098832857,14.5,3818.2,3817.7,2.61937122]
[1753098834055,14.5,3818.2,3817.8,2.61930596]
[1753098834560,14.5,3818.2,3817.8,2.61924933]
[1753098834924,0.7884,3818.3,3817.6,2.61943347]
[1753098835125,0.7884,3818.3,3817.8,2.61930955]
[1753098835321,15.34973849,3818.5,3817.9,3.05138492]
[1753098835522,15.3236,3818.5,3818.0,2.61916277]
[1753098835729,15.3236,3818.5,3817.9,0.4322]
[1753098835730,15.3236,3818.5,3817.9,3.05141265]
[1753098836041,0.8236,3818.5,3817.9,3.05141265]
[1753098836241,3.46857509,3818.5,3817.9,3.05143078]
[1753098836942,0.84973849,3818.5,3817.9,0.4322]
[1753098837136,0.84973849,3818.5,3817.9,3.05138348]
[1753098837462,3.46857759,3818.5,3817.9,3.05138348]
[1753098837651,0.84973849,3818.5,3817.9,3.05138348]
[1753098838563,3.46857187,3818.5,3817.9,3.05138348]
[1753098839230,0.84973849,3818.5,3818.0,2.61915428]
[1753098839535,3.90339332,3818.5,3817.9,2.61921213]
[1753098839862,3.05370822,3818.4,3817.8,2.61928915]
[1753098840061,0.02613849,3818.3,3817.3,0.001]
[1753098840269,2.61915407,3818.1,3817.4,2.61954259]
[1753098840468,0.46093849,3818.0,3817.4,2.61954259]
[1753098840966,0.46093849,3818.0,3817.3,0.001]
[1753098840967,9.47601267,3818.0,3817.3,0.001]
[1753098841266,2.6193489,3817.8,3817.3,0.001]
[1753098841474,0.02613849,3817.7,3817.3,0.001]
[1753098841630,0.46093849,3817.7,3817.3,0.001]
[1753098842490,0.4348,3817.6,3817.3,0.001]
[1753098842859,0.7776,3817.5,3817.3,0.001]
[1753098843378,0.02613849,3817.4,3817.3,0.001]
[1753098843581,0.7776,3817.5,3817.3,0.001]
[1753098844799,9.01507418,3818.0,3817.3,0.001]
[1753098844800,0.8227,3817.9,3817.4,0.4322]
[1753098845160,0.8227,3817.9,3817.5,3.05171538]
[1753098845660,0.8227,3817.9,3817.3,0.001]
[1753098845661,3.08026138,3817.8,3817.3,0.001]
[1753098846096,3.05419793,3817.7,3817.3,0.001]
[1753098846394,0.02613849,3817.6,3817.3,0.001]
[1753098846595,3.08040228,3817.6,3817.3,0.001]
[1753098846784,0.8227,3817.4,3817.3,0.001]
[1753098847089,0.84883849,3817.4,3817.3,0.001]
[1753098847263,1.28363849,3817.4,3817.3,0.001]
[1753098847896,3.9032225,3817.4,3817.3,0.001]
[1753098848261,18.4032225,3817.4,3817.3,0.001]
[1753098848457,18.37708401,3817.4,3817.3,0.001]
[1753098849563,2.61972126,3817.2,3817.1,0.001]
[1753098849899,2.61972126,3817.2,3816.5,0.001]
[1753098849900,0.7507,3816.7,3816.5,0.001]
[1753098850067,11.66134577,3816.6,3816.5,0.001]
[1753098850267,12.89250728,3816.6,3816.5,0.001]
[1753098850900,27.39250728,3816.6,3816.5,0.001]
[1753098851204,17.9426331,3816.6,3816.5,0.001]
[1753098851387,15.3225,3816.6,3816.5,0.001]
[1753098851897,14.5,3816.6,3816.5,0.001]
[1753098852397,3.37148007,3817.0,3816.5,0.001]
[1753098852595,2.64607318,3816.9,3816.5,0.001]
[1753098852964,14.5,3816.8,3816.5,0.001]
[1753098853164,0.02613849,3816.7,3816.5,0.001]
[1753098853600,0.02613849,3816.9,3816.5,0.001]
[1753098853787,2.61943883,3817.7,3816.9,2.61988049]
[1753098853968,0.02613849,3817.6,3816.8,0.4322]
[1753098854163,0.02613849,3817.6,3816.7,0.78710064]
[1753098854164,0.02613849,3817.6,3816.9,0.4322]
[1753098854466,0.4348,3818.0,3816.7,0.7609]
[1753098854467,0.02613849,3817.7,3816.7,0.7609]
[1753098854767,9.01507418,3817.5,3816.5,0.001]
[1753098854963,0.46093849,3817.4,3816.5,2.62119946]
[1753098855270,0.46093849,3817.4,3816.5,0.001]
[1753098855789,2.61991452,3817.0,3816.5,0.001]
[1753098855993,0.02613849,3816.9,3816.5,0.001]
[1753098856191,2.64606818,3816.9,3816.5,0.001]
[1753098856389,2.62004056,3816.8,3816.5,0.001]
[1753098856570,0.02613849,3816.7,3816.5,0.001]
[1753098856906,0.02613849,3817.0,3816.6,0.4645]
[1753098857276,2.64587793,3817.2,3816.6,0.4645]
[1753098857479,2.61986806,3817.0,3816.6,0.4645]
[1753098857685,0.02613849,3816.9,3816.6,0.4645]
[1753098858086,2.61981469,3817.1,3816.5,2.62120029]
[1753098858286,0.02613849,3817.2,3816.6,0.4645]
[1753098858476,2.61979819,3817.1,3816.6,0.4645]
[1753098858806,0.02613849,3817.0,3816.6,0.4645]
[1753098860317,2.64599924,3817.0,3816.6,0.4645]
[1753098860672,2.64599924,3817.0,3816.3,2.08682485]
[1753098860673,3.08849924,3817.0,3816.3,2.08682485]
[1753098861089,2.62002006,3816.8,3816.2,2.62039109]
[1753098861497,2.62002006,3816.8,3816.1,0.756]
[1753098861498,2.62002006,3816.8,3816.1,3.37646143]
[1753098861694,0.46863849,3817.0,3816.1,1.65570155]
[1753098861892,3.08850118,3817.0,3816.4,2.62025759]
[1753098862288,3.08850118,3817.0,3816.3,2.62031225]
[1753098862499,2.6199282,3816.9,3816.2,2.62038543]
[1753098862797,0.02613849,3816.8,3816.3,2.6203324]
[1753098863125,0.02613849,3816.9,3816.3,2.6203324]
[1753098863417,0.4425,3816.8,3816.1,3.756]
[1753098863583,3.06251182,3816.8,3816.2,2.62038197]
[1753098863918,0.02613849,3816.7,3815.8,0.82880001]
[1753098864119,2.62021752,3816.5,3815.9,2.62059764]
[1753098864322,2.62015789,3816.6,3815.9,3.32925064]
[1753098864495,0.02613849,3816.5,3815.9,0.70866376]
[1753098864895,0.02613849,3816.5,3815.9,3.0]
[1753098865294,3.08875053,3816.7,3815.9,5.62061374]
[1753098865495,3.08875053,3816.7,3816.0,2.62053143]
[1753098866103,0.46863849,3816.7,3816.1,2.62046534]
[1753098866692,0.82703849,3817.2,3816.1,0.4645]
[1753098866896,2.61980473,3817.1,3816.5,2.62019486]
[1753098867098,2.64601309,3817.0,3816.4,2.6202691]
[1753098867283,0.02613849,3817.0,3816.4,2.6202691]
[1753098867483,2.6460007,3817.0,3816.3,3.08481893]
[1753098868021,2.6460007,3817.0,3816.4,2.62025636]
[1753098868944,2.6460007,3817.0,3816.2,2.96944588]
[1753098869086,2.61993895,3816.9,3816.2,2.96944588]
[1753098869293,0.02613849,3816.8,3816.2,2.96944588]
[1753098869489,0.02613849,3816.8,3816.3,0.90544879]
[1753098869992,0.4425,3816.7,3816.2,0.34907055]
[1753098870215,0.4425,3816.7,3816.1,2.62045293]
[1753098870614,0.4425,3816.7,3816.2,2.62039966]
[1753098870822,3.06263337,3816.6,3815.8,1e-08]
[1753098871020,3.41141374,3815.9,3815.8,1e-08]
[1753098871595,3.85391374,3815.9,3815.8,1e-08]
[1753098877044,0.7908,3815.9,3815.8,1e-08]
[1753098877361,0.05440401,3816.0,3815.8,1e-08]
[1753098878042,0.49690401,3816.0,3815.8,1e-08]
[1753098878248,0.02613849,3815.9,3815.8,1e-08]
[1753098878453,3.08925223,3815.9,3815.8,1e-08]
[1753098878633,0.02613849,3815.9,3815.8,1e-08]
[1753098879037,0.0805425,3816.0,3815.8,1e-08]
[1753098879441,2.7010919,3816.0,3815.8,1e-08]
[1753098879643,0.0805425,3816.0,3815.8,1e-08]
[1753098880732,0.05440401,3816.0,3815.8,1e-08]
[1753098880948,0.05440401,3816.0,3815.9,3.85751374]
[1753098881148,0.05440401,3816.0,3815.9,7.50553462]
[1753098882846,0.05440401,3816.0,3815.9,8.05553462]
[1753098885832,0.05440401,3816.0,3815.9,7.04103462]
[1753098886045,0.05440401,3816.0,3815.9,6.39301374]
[1753098886337,0.05440401,3816.0,3815.9,3.0]
[1753098886745,0.05440401,3816.0,3815.8,1e-08]
[1753098886947,0.4748,3815.9,3815.8,1e-08]
[1753098888154,0.0805425,3816.0,3815.8,1e-08]
[1753098888361,0.05440401,3816.0,3815.8,2.62063001]
[1753098888978,0.05440401,3816.0,3815.8,1e-08]
[1753098890655,0.05440401,3816.0,3815.8,2.62066929]
[1753098890856,0.05440401,3816.0,3815.9,2.62061374]
[1753098891058,0.05440401,3816.0,3815.9,3.88651374]
[1753098891880,0.05440401,3816.0,3815.9,3.44941374]
[1753098892065,0.05440401,3816.0,3815.8,1e-08]
[1753098892686,0.05440401,3816.0,3815.8,2.62067386]
[1753098892890,0.05440401,3816.0,3815.9,2.62061374]
[1753098893091,0.05440401,3816.0,3815.9,3.05771374]
[1753098893277,0.05440401,3816.0,3815.9,2.62061374]
[1753098893858,2.62061374,3815.9,3815.8,1e-08]
[1753098894063,3.3993511,3815.7,3815.6,0.001]
[1753098894262,3.46798959,3815.7,3815.6,0.001]
[1753098894462,18.44278959,3815.7,3815.6,0.001]
[1753098894686,18.4166511,3815.7,3815.6,0.001]
[1753098894886,3.39746327,3815.1,3815.0,1e-08]
[1753098895088,3.39746327,3815.1,3813.3,2.62239698]
[1753098895089,3.39794429,3814.4,3813.3,2.62239698]
[1753098895395,12.43915696,3814.4,3813.5,3.0]
[1753098895560,12.88781847,3814.4,3813.5,3.0]
[1753098895895,12.88781847,3814.4,3813.5,2.62221365]
[1753098895896,24.76617418,3814.4,3813.5,2.62221365]
[1753098896121,24.76617418,3814.4,3813.8,2.62201193]
[1753098896294,15.7511,3814.4,3813.3,0.4371]
[1753098896495,14.5,3814.4,3814.2,2.62171674]
[1753098897279,14.5,3814.4,3813.9,2.6219394]
[1753098897280,0.4748,3814.4,3813.9,2.6219394]
[1753098897490,3.12258278,3814.4,3812.7,0.4371]
[1753098897798,18.39888278,3814.4,3812.9,2.62267227]
[1753098897977,18.37274429,3814.4,3812.9,2.62267227]
[1753098898166,18.37274429,3814.4,3812.4,0.7551]
[1753098898167,3.42192771,3813.6,3812.4,0.7551]
[1753098898366,2.62238325,3813.4,3812.6,2.62283319]
[1753098898591,0.02613849,3813.3,3812.7,5.62280124]
[1753098898867,0.02613849,3813.3,3812.7,3.0]
[1753098899086,0.02613849,3813.3,3812.8,2.62270025]
[1753098899287,0.02613849,3813.3,3812.9,3.0]
[1753098899502,0.02613849,3813.4,3812.9,3.0]
[1753098899813,3.09722338,3813.3,3812.5,2.62288803]
[1753098899981,0.02613849,3813.2,3812.6,3.0]
[1753098900302,14.5,3813.1,3812.6,2.62285367]
[1753098900520,0.02613849,3813.0,3811.9,3.0]
[1753098900810,0.7997,3813.6,3813.0,2.62260687]
[1753098901108,0.02613849,3813.5,3812.9,0.4371]
[1753098901307,14.5,3813.5,3813.1,2.62250908]
[1753098901521,14.5,3813.5,3813.0,2.62260687]
[1753098901522,0.02613849,3813.4,3813.0,2.62260687]
[1753098901808,3.09720083,3813.3,3812.6,2.62286032]
[1753098902003,0.50093849,3813.3,3812.5,0.0262295]
[1753098902209,0.50093849,3813.3,3812.3,0.8038]
[1753098902417,0.02613849,3813.3,3813.0,2.62254217]
[1753098902728,0.02613849,3813.4,3812.9,2.62262828]
[1753098902910,14.5,3813.5,3813.0,2.62254953]
[1753098903224,0.4748,3813.7,3812.7,0.02622813]
[1753098903379,0.02613849,3813.6,3813.5,2.62226301]
[1753098903580,0.02613849,3813.6,3812.7,3.57622813]
[1753098903581,0.02613849,3813.7,3813.4,2.62230674]
[1753098903824,0.02613849,3813.7,3813.5,2.62225383]
[1753098904011,0.02613849,3813.7,3813.6,2.62219425]
[1753098904212,0.02613849,3813.7,3813.3,0.4371]
[1753098904414,0.97712877,3813.8,3813.3,0.4371]
[1753098904415,0.97712877,3813.8,3813.4,2.62232761]
[1753098904584,0.02613849,3813.7,3813.2,3.0]
[1753098905014,0.02613849,3813.7,3812.8,0.4371]
[1753098905015,0.02613849,3813.7,3812.5,0.8259]
[1753098905218,0.4748,3813.6,3813.1,2.62247164]
[1753098905516,0.02613849,3813.7,3813.3,3.0]
[1753098905683,0.02613849,3813.7,3813.2,3.0]
[1753098905887,0.02613849,3813.7,3813.1,2.62253097]
[1753098906086,0.02613849,3813.7,3813.5,2.62221808]
[1753098906386,0.97712877,3813.8,3812.9,3.0]
[1753098906585,0.97712877,3813.8,3813.1,2.62253809]
[1753098906586,0.02613849,3813.7,3813.1,2.62253809]
[1753098906786,0.02613849,3813.7,3813.0,1.00199679]
[1753098906787,0.02613849,3813.7,3813.6,2.62219425]
[1753098907034,0.97712877,3813.8,3813.7,2.62212549]
[1753098908415,0.97712877,3813.8,3813.3,0.8161]
[1753098908721,0.97712877,3813.8,3813.7,2.62212549]
[1753098909420,0.97712877,3813.8,3813.7,3.05922549]
[1753098909588,3.08613849,3814.2,3813.8,2.62201323]
[1753098909935,3.56093849,3814.2,3813.8,2.62201323]
[1753098910141,3.56093849,3814.2,3813.9,2.62198326]
[1753098910288,0.762,3815.2,3814.6,2.62150684]
[1753098910489,9.51601267,3815.1,3813.5,0.7626]
[1753098910721,9.51601267,3815.1,3814.0,2.62186973]
[1753098910722,2.62149749,3814.7,3814.0,2.62186973]
[1753098910922,0.02613849,3814.6,3813.5,3.38481945]
[1753098911150,0.02613849,3814.6,3814.3,2.62170358]
[1753098911292,0.02613849,3814.6,3814.5,2.62157556]
[1753098911490,0.762,3815.2,3814.5,2.62157556]
[1753098911491,0.50093849,3815.1,3814.5,2.62157556]
[1753098911899,2.64731775,3815.1,3814.2,3.41767306]
[1753098912102,3.09603659,3815.0,3814.3,2.62171302]
[1753098912305,3.09603659,3815.0,3814.4,2.62162822]
[1753098912306,0.02613849,3814.9,3814.4,2.62162822]
[1753098912529,0.02613849,3814.9,3814.5,2.62151365]
[1753098912909,14.5,3814.8,3814.4,2.62162097]
[1753098913109,14.5,3814.8,3813.9,1.233]
[1753098913110,0.50093849,3814.7,3814.3,2.62169478]
[1753098913423,0.02613849,3814.7,3813.9,0.7959]
[1753098913617,0.4748,3814.6,3814.1,2.62180616]
[1753098913920,0.02613849,3814.5,3814.1,2.62182384]
[1753098914227,0.50093849,3814.5,3814.1,2.62182384]
[1753098914931,0.50093849,3814.5,3814.0,2.62190493]
[1753098915130,0.50093849,3814.5,3814.1,2.62185043]
[1753098915823,0.50093849,3814.5,3814.2,3.0]
[1753098916130,0.02613849,3814.5,3814.2,2.62177726]
[1753098916301,0.02613849,3814.7,3814.2,2.62177726]
[1753098916715,0.02613849,3814.7,3814.3,2.6217035]
[1753098916921,0.48533849,3814.7,3814.2,2.62176668]
[1753098917136,0.48533849,3814.7,3814.3,2.62171124]
[1753098918021,0.48533849,3814.7,3814.2,2.62176423]
[1753098918227,0.4592,3814.6,3814.2,2.62176423]
[1753098918561,0.02613849,3814.5,3813.8,3.4364]
[1753098918723,0.48533849,3814.5,3813.8,3.05844746]
[1753098918924,0.48533849,3814.5,3814.1,2.62180904]
[1753098919657,0.48533849,3814.5,3814.2,2.62177886]
[1753098919859,14.98533849,3814.5,3814.1,2.62183238]
[1753098920022,14.9612,3814.5,3814.1,2.62183238]
[1753098920221,14.9612,3814.5,3814.2,2.62177525]
[1753098920757,0.002,3814.5,3814.3,2.62171064]
[1753098920952,0.002,3814.5,3814.2,2.62176393]
[1753098921160,0.002,3814.5,3813.8,0.4364]
[1753098921334,0.002,3814.5,3814.1,2.6218092]
[1753098921532,0.02813849,3814.5,3814.2,2.62176496]
[1753098922327,0.002,3814.5,3814.0,2.62191924]
[1753098922547,0.48733849,3814.5,3814.0,2.62191924]
[1753098922746,0.48733849,3814.5,3814.1,2.62184321]
[1753098923272,0.48733849,3814.5,3814.0,2.62189557]
[1753098923851,2.62175785,3814.3,3813.7,2.62212247]
[1753098924066,0.02613849,3814.2,3813.7,2.62212247]
[1753098924378,0.48533849,3814.2,3813.7,2.62212247]
[1753098925186,0.48533849,3814.2,3813.7,2.62209901]
[1753098925340,0.48533849,3814.2,3813.3,1.2069]
[1753098925341,0.7655,3814.1,3813.3,1.2069]
[1753098925665,0.02613849,3814.0,3813.5,2.62222248]
[1753098925865,0.48533849,3814.0,3813.3,0.45956285]
[1753098926052,0.48533849,3814.0,3813.5,2.62226264]
[1753098926553,0.4592,3813.9,3813.4,2.62230888]
[1753098926878,0.02613849,3813.8,3812.9,0.4364]
[1753098927190,0.02613849,3813.8,3813.2,2.6224031]
[1753098927385,0.02613849,3813.8,3812.8,0.7618]
[1753098927386,9.04121267,3813.8,3812.8,0.7618]
[1753098927684,12.09637884,3813.8,3813.1,2.62252353]
[1753098928042,12.09637884,3813.8,3813.2,2.62246885]
[1753098928450,9.47427418,3813.8,3813.2,2.62246885]
[1753098928684,0.02613849,3813.7,3813.1,2.62252529]
[1753098929052,2.64828437,3813.7,3813.0,2.62259552]
[1753098929352,0.02613849,3813.7,3813.2,3.0]
[1753098929660,0.4592,3813.6,3813.2,2.62246561]
[1753098930005,0.02613849,3813.5,3813.3,0.55]
[1753098930215,0.7649,3813.4,3812.8,2.62271276]
[1753098930403,0.76123849,3813.4,3812.9,3.0]
[1753098930595,0.76123849,3813.4,3813.0,0.55]
[1753098930977,3.08160054,3813.3,3812.7,0.55]
[1753098931307,3.08162358,3813.3,3812.7,0.55]
[1753098931608,9.47427418,3813.3,3812.6,0.11817743]
[1753098931776,2.62249793,3813.2,3812.6,0.11817743]
[1753098932107,0.76123849,3813.4,3812.6,0.11817743]
[1753098932306,2.62251103,3813.2,3812.6,3.11817743]
[1753098932472,0.4592,3813.3,3812.6,0.11817743]
[1753098932802,0.4592,3813.3,3812.6,2.74103595]
[1753098933108,3.06,3814.1,3812.9,4.3198]
[1753098933408,3.06,3814.1,3813.1,0.55]
[1753098933409,0.7583,3814.0,3813.1,0.55]
[1753098933608,0.7583,3814.0,3813.4,3.55]
[1753098933810,3.38026935,3814.0,3813.4,3.55]
[1753098933975,0.7583,3814.0,3813.4,3.55]
[1753098934311,0.7583,3814.0,3813.4,6.17228348]
[1753098934672,2.62206434,3813.8,3813.2,0.55]
[1753098934908,9.47427418,3813.7,3812.6,0.93747743]
[1753098935213,0.7802,3813.5,3812.8,3.0]
[1753098935414,0.4592,3814.1,3812.7,0.55]
[1753098935710,0.8214,3814.0,3813.1,3.17251993]
[1753098935900,3.44333869,3814.0,3813.3,3.17238595]
[1753098936217,3.44333638,3814.0,3813.3,3.17238595]
[1753098936411,3.44333638,3814.0,3813.3,3.17240012]
[1753098936587,0.8214,3814.0,3813.4,2.62232549]
[1753098936789,3.44332083,3814.0,3813.4,0.55]
[1753098936968,0.8214,3814.0,3813.4,3.17231415]
[1753098937174,0.8214,3814.0,3813.3,2.62237742]
[1753098937373,0.8214,3814.0,3813.4,0.55]
[1753098937590,0.8214,3814.0,3813.2,0.55]
[1753098937785,0.8214,3814.0,3813.4,2.62227769]
[1753098938327,0.8214,3814.0,3813.5,2.62225352]
[1753098938522,0.8214,3814.0,3813.4,2.62231355]
[1753098938829,1.2806,3814.0,3813.4,2.62231355]
[1753098939717,0.7953,3814.6,3813.8,0.55]
[1753098939893,0.7953,3814.6,3814.2,2.62176269]
[1753098940288,0.7953,3814.6,3814.1,2.62182708]
[1753098941228,0.7953,3814.6,3814.0,3.17190619]
[1753098941616,0.8006,3813.9,3813.0,2.62260687]
[1753098941925,3.08128381,3813.8,3813.1,3.02533642]
[1753098942116,2.62212666,3813.7,3813.2,3.0]
[1753098942528,3.08132666,3813.7,3813.1,3.001]
[1753098942828,0.4592,3813.6,3813.2,3.0]
[1753098943030,3.8818123,3813.9,3813.2,2.62246547]
[1753098943198,1.2598,3813.9,3813.3,3.0]
[1753098943394,0.4592,3813.8,3813.1,0.001]
[1753098943904,2.62218186,3813.7,3813.1,0.001]
[1753098944104,17.12218186,3813.7,3813.1,0.001]
[1753098944409,2.62219425,3813.6,3813.1,0.001]
[1753098944887,17.12213256,3813.7,3813.1,0.001]
[1753098945431,2.62221316,3813.6,3813.1,0.001]
[1753098945629,17.1221468,3813.7,3813.1,3.001]
[1753098945789,14.5,3813.7,3813.3,3.0]
[1753098946728,14.9658,3813.7,3813.3,3.0]
[1753098946928,17.58796566,3813.7,3813.1,0.551]
[1753098947097,2.62221067,3813.6,3813.1,0.001]
[1753098947296,2.6222179,3813.6,3813.1,0.001]
[1753098947626,0.4658,3813.5,3813.1,0.001]
[1753098948602,0.4658,3813.5,3813.1,2.62352788]
[1753098948833,14.5,3813.7,3813.2,3.55]
[1753098949126,14.5,3813.7,3813.3,2.62240054]
[1753098949327,14.5,3813.7,3813.2,3.17244527]
[1753098949531,14.5,3813.7,3813.2,0.55]
[1753098949833,3.42260568,3813.9,3813.3,2.6223744]
[1753098950032,0.8006,3813.9,3813.3,2.6223744]
[1753098950232,15.3006,3813.9,3813.3,2.6223744]
[1753098950439,17.9225896,3813.9,3813.3,2.6223744]
[1753098950736,15.3006,3813.9,3813.3,2.6223744]
[1753098951231,17.92259478,3813.9,3813.3,2.6223744]
[1753098951529,0.4658,3813.8,3813.3,3.0]
[1753098951727,15.3006,3813.9,3813.1,3.551]
[1753098951930,0.4658,3813.7,3813.3,3.0]
[1753098952133,0.4658,3813.7,3813.1,3.001]
[1753098952338,3.08797529,3813.7,3813.1,3.001]
[1753098952540,3.08805202,3813.6,3813.1,0.001]
[1753098952932,0.4658,3813.5,3813.1,0.001]
[1753098953338,3.08807635,3813.5,3813.1,0.001]
[1753098953528,2.62227635,3813.5,3813.1,0.001]
[1753098953844,3.44806931,3813.2,3813.1,0.001]
[1753098954151,0.8256,3813.2,3812.4,0.001]
[1753098954349,2.62260687,3813.0,3812.4,0.001]
[1753098954518,0.4658,3813.1,3812.4,0.001]
[1753098954519,2.62273333,3812.9,3812.4,0.001]
[1753098954721,2.62284084,3812.7,3812.4,0.001]
[1753098955117,3.08868202,3812.6,3812.4,0.001]
[1753098955456,3.08870922,3812.6,3812.4,0.001]
[1753098955763,14.5,3812.8,3812.4,0.001]
[1753098956276,14.9658,3812.8,3812.4,0.001]
[1753098956551,3.08861848,3812.7,3812.4,0.001]
[1753098956846,14.5,3812.8,3812.4,0.001]
[1753098957351,2.62288585,3812.6,3812.4,0.001]
[1753098957568,0.4658,3812.7,3812.4,0.001]
[1753098957569,3.41395081,3812.5,3812.4,0.001]
[1753098957942,1.2568,3812.5,3812.4,0.001]
[1753098959170,0.791,3813.3,3812.7,0.7831]
[1753098959331,0.791,3813.3,3812.7,3.40586856]
[1753098959647,3.06,3813.8,3812.8,0.89058686]
[1753098959854,0.4658,3813.9,3813.3,2.62237634]
[1753098960058,0.4658,3813.9,3812.9,0.02622675]
[1753098960254,0.4658,3813.9,3813.3,2.62236538]
[1753098960658,0.4658,3813.9,3813.4,2.62233079]
[1753098960869,26.92999368,3814.0,3813.2,0.55]
[1753098961044,0.4658,3813.8,3813.2,6.17241197]
[1753098961268,0.4658,3813.8,3813.3,3.0]
[1753098961551,9.01507418,3813.5,3812.8,0.55]
[1753098961868,9.01507418,3813.5,3813.0,2.62260685]
[1753098962072,9.48087418,3813.5,3812.9,2.62267565]
[1753098962442,9.48087418,3813.5,3813.0,2.62259635]
[1753098962648,0.4658,3813.4,3813.0,2.62259635]
[1753098963527,0.4658,3813.9,3812.8,0.55]
[1753098963789,0.4658,3813.9,3813.2,2.62241463]
[1753098963790,3.08784676,3813.9,3813.2,2.62241463]
[1753098963955,2.62206203,3813.8,3813.2,2.62241463]
[1753098964367,2.62206203,3813.8,3813.1,2.62252014]
[1753098964963,0.4658,3813.9,3812.8,0.4642]
[1753098965288,0.4658,3813.9,3813.3,2.62235671]
[1753098965443,3.087788,3813.9,3813.3,2.62235671]
[1753098965643,26.93000046,3814.0,3813.4,2.62232461]
[1753098967902,24.30807418,3814.0,3813.0,0.4642]
[1753098968101,24.30807418,3814.0,3813.1,0.67764728]
[1753098968405,24.30807418,3814.0,3813.5,2.62220377]
[1753098968606,24.30807418,3814.0,3813.6,2.62217227]
[1753098968767,24.30807418,3814.0,3813.5,2.62223951]
[1753098969117,24.30807418,3814.0,3813.3,3.0]
[1753098969273,27.39581051,3814.0,3813.3,2.62235632]
[1753098969609,11.63734251,3813.5,3812.9,3.0]
[1753098969782,9.01507418,3813.5,3813.1,2.62253402]
[1753098970204,0.4658,3813.4,3812.9,5.62267565]
[1753098970411,0.4658,3813.3,3812.8,5.62273347]
[1753098970704,0.4658,3813.3,3812.8,3.0]
[1753098970919,0.4658,3813.3,3812.7,0.7831]
[1753098971125,3.08831105,3813.2,3812.4,0.8132]
[1753098971291,3.08831105,3813.2,3812.6,2.62286625]
[1753098971609,0.4658,3813.2,3812.7,2.62281041]
[1753098971784,2.62240916,3813.3,3812.7,2.62281041]
[1753098972119,9.01507418,3812.8,3812.4,0.001]
[1753098972270,2.62282302,3812.7,3812.4,0.001]
[1753098972471,14.5,3812.6,3812.4,0.001]
[1753098972787,14.9658,3812.6,3812.4,0.001]
[1753098972984,0.4658,3812.6,3812.5,2.62295081]
[1753098973184,0.4658,3813.2,3812.9,2.62263417]
[1753098973381,9.82867418,3813.3,3812.4,0.4652]
[1753098973705,14.5,3813.2,3813.0,2.62254671]
[1753098973909,14.5,3813.2,3813.1,2.62253809]
[1753098974115,9.84447418,3813.8,3813.5,2.62222252]
[1753098974278,9.84447418,3813.8,3813.6,2.62216536]
[1753098974477,14.5,3813.7,3813.6,2.62216536]
[1753098974891,14.5,3813.7,3813.3,2.62233571]
[1753098975210,14.5,3813.7,3813.5,2.62221487]
[1753098975575,14.5,3813.7,3813.6,2.62219425]
[1753098975988,14.5,3813.7,3813.5,2.62224037]
[1753098976505,14.5,3813.7,3813.6,2.62219425]